[Event "Late-Titled-Tuesday-Blitz-January-23-2024"]
[Site "Chess.com"]
[Date "2024.01.23"]
[Round "5"]
[White "TheAlienParty"]
[Black "Slovak_fighter2000"]
[Result "1-0"]
[WhiteElo "2354"]
[BlackElo "2502"]
[TimeControl "180+1"]
[EndTime "14:52:19 PST"]
[Termination "TheAlienParty won on time"]

1. c4 {[%clk 0:02:53.4]} 1... e5 {[%clk 0:01:48.1]} 2. Nc3 {[%clk 0:02:52.3]}
2... Nf6 {[%clk 0:01:39.5]} 3. Nf3 {[%clk 0:02:51]} 3... e4 {[%clk 0:01:36.7]}
4. Ng5 {[%clk 0:02:49.5]} 4... b5 {[%clk 0:01:36.4]} 5. Nxb5 {[%clk 0:02:44.9]}
5... c6 {[%clk 0:01:34.7]} 6. Nc3 {[%clk 0:02:44.1]} 6... d5 {[%clk 0:01:33.8]}
7. cxd5 {[%clk 0:02:41]} 7... cxd5 {[%clk 0:01:34.7]} 8. e3 {[%clk 0:02:32.7]}
8... h6 {[%clk 0:01:12.4]} 9. Nh3 {[%clk 0:02:32]} 9... Nc6 {[%clk 0:00:53.9]}
10. Nf4 {[%clk 0:02:28.4]} 10... Be7 {[%clk 0:00:49.8]} 11. h4 {[%clk
0:02:27.9]} 11... O-O {[%clk 0:00:45.3]} 12. d4 {[%clk 0:02:24.5]} 12... Bg4
{[%clk 0:00:35.5]} 13. Be2 {[%clk 0:02:14.2]} 13... Bxe2 {[%clk 0:00:31.3]} 14.
Qxe2 {[%clk 0:02:13.7]} 14... Bb4 {[%clk 0:00:29.9]} 15. Bd2 {[%clk 0:02:12.7]}
15... Qa5 {[%clk 0:00:29]} 16. g4 {[%clk 0:02:10.2]} 16... Bxc3 {[%clk
0:00:25.3]} 17. Bxc3 {[%clk 0:02:09.2]} 17... Qb6 {[%clk 0:00:22.1]} 18. g5
{[%clk 0:02:08.6]} 18... hxg5 {[%clk 0:00:22.1]} 19. hxg5 {[%clk 0:02:08.3]}
19... Nd7 {[%clk 0:00:09.7]} 20. Qh5 {[%clk 0:02:06.9]} 20... f5 {[%clk
0:00:09.6]} 21. g6 {[%clk 0:02:03.4]} 1-0

[Event "Late-Titled-Tuesday-Blitz-January-23-2024"]
[Site "Chess.com"]
[Date "2024.01.23"]
[Round "5"]
[White "TV27"]
[Black "howitzer14"]
[Result "0-1"]
[WhiteElo "2183"]
[BlackElo "2953"]
[TimeControl "180+1"]
[EndTime "14:52:23 PST"]
[Termination "howitzer14 won by resignation"]

1. e4 {[%clk 0:02:57.3]} 1... c5 {[%clk 0:02:54.8]} 2. Nc3 {[%clk 0:02:55.8]}
2... Nc6 {[%clk 0:02:51.7]} 3. g3 {[%clk 0:02:50.1]} 3... g6 {[%clk 0:02:45.3]}
4. Bg2 {[%clk 0:02:49.9]} 4... Bg7 {[%clk 0:02:45.3]} 5. d3 {[%clk 0:02:50.4]}
5... d6 {[%clk 0:02:38.9]} 6. Nge2 {[%clk 0:02:43.9]} 6... Rb8 {[%clk
0:02:38.4]} 7. O-O {[%clk 0:02:42]} 7... b5 {[%clk 0:02:38.5]} 8. f4 {[%clk
0:02:17.3]} 8... b4 {[%clk 0:02:30.2]} 9. e5 {[%clk 0:01:40.4]} 9... Bb7 {[%clk
0:01:55.1]} 10. Ne4 {[%clk 0:01:39.8]} 10... Nh6 {[%clk 0:01:54.6]} 11. exd6
{[%clk 0:01:38.2]} 11... exd6 {[%clk 0:01:54.3]} 12. f5 {[%clk 0:01:24.3]} 12...
Nxf5 {[%clk 0:01:52.9]} 13. Rxf5 {[%clk 0:01:23.7]} 13... gxf5 {[%clk
0:01:52.1]} 14. Bg5 {[%clk 0:01:12.5]} 14... f6 {[%clk 0:01:50]} 15. Nf4 {[%clk
0:01:11.5]} 15... fxg5 {[%clk 0:01:27.5]} 16. Qh5+ {[%clk 0:01:10.4]} 16... Kd7
{[%clk 0:01:27.5]} 17. Bh3 {[%clk 0:01:04]} 17... Bd4+ {[%clk 0:01:08.4]} 18.
Kh1 {[%clk 0:01:02.8]} 18... gxf4 {[%clk 0:01:07.1]} 19. Qxf5+ {[%clk
0:00:58.4]} 19... Kc7 {[%clk 0:01:07.1]} 20. Ng5 {[%clk 0:00:57.7]} 20... Ne7+
{[%clk 0:01:06]} 0-1

[Event "Late-Titled-Tuesday-Blitz-January-23-2024"]
[Site "Chess.com"]
[Date "2024.01.23"]
[Round "5"]
[White "smotherhubbard"]
[Black "Maxfan2008"]
[Result "1-0"]
[WhiteElo "2340"]
[BlackElo "2496"]
[TimeControl "180+1"]
[EndTime "14:52:39 PST"]
[Termination "smotherhubbard won by checkmate"]

1. d4 {[%clk 0:03:00.9]} 1... Nf6 {[%clk 0:02:59.4]} 2. c4 {[%clk 0:02:58.6]}
2... e6 {[%clk 0:02:59.6]} 3. Nf3 {[%clk 0:02:56.9]} 3... Bb4+ {[%clk
0:02:57.4]} 4. Bd2 {[%clk 0:02:56.2]} 4... c5 {[%clk 0:02:57.9]} 5. Bxb4 {[%clk
0:02:49]} 5... cxb4 {[%clk 0:02:58.8]} 6. Nbd2 {[%clk 0:02:47.2]} 6... O-O
{[%clk 0:02:57.2]} 7. e4 {[%clk 0:02:46.9]} 7... d6 {[%clk 0:02:56.3]} 8. Bd3
{[%clk 0:02:46.5]} 8... e5 {[%clk 0:02:41.4]} 9. O-O {[%clk 0:02:30.7]} 9... Nc6
{[%clk 0:02:40.1]} 10. d5 {[%clk 0:02:30.1]} 10... Nb8 {[%clk 0:02:37]} 11. c5
{[%clk 0:02:26.5]} 11... Bg4 {[%clk 0:02:31.9]} 12. h3 {[%clk 0:02:21.4]} 12...
Bxf3 {[%clk 0:02:28.8]} 13. Nxf3 {[%clk 0:02:20.7]} 13... dxc5 {[%clk
0:02:25.8]} 14. Nxe5 {[%clk 0:02:20.6]} 14... Re8 {[%clk 0:02:26.4]} 15. f4
{[%clk 0:02:19]} 15... Qb6 {[%clk 0:02:11.7]} 16. Nc4 {[%clk 0:02:14.4]} 16...
Qd8 {[%clk 0:02:09.9]} 17. Qf3 {[%clk 0:02:12.2]} 17... b5 {[%clk 0:02:06.3]}
18. Ne3 {[%clk 0:02:02.7]} 18... c4 {[%clk 0:02:05.1]} 19. Bc2 {[%clk
0:02:01.7]} 19... Qb6 {[%clk 0:02:02.5]} 20. Kh1 {[%clk 0:01:58.3]} 20... Nbd7
{[%clk 0:02:00.1]} 21. Rae1 {[%clk 0:01:46.9]} 21... a5 {[%clk 0:01:44.3]} 22.
e5 {[%clk 0:01:45.6]} 22... Nxe5 {[%clk 0:01:43.1]} 23. fxe5 {[%clk 0:01:46.5]}
23... Rxe5 {[%clk 0:01:42.9]} 24. Nf5 {[%clk 0:01:39.8]} 24... Rae8 {[%clk
0:01:39.2]} 25. Rxe5 {[%clk 0:01:34.7]} 25... Rxe5 {[%clk 0:01:40.1]} 26. d6
{[%clk 0:01:34.3]} 26... h5 {[%clk 0:01:24.1]} 27. Nxg7 {[%clk 0:01:30.6]} 27...
Qxd6 {[%clk 0:01:19.5]} 28. Nf5 {[%clk 0:01:11.2]} 28... Qe6 {[%clk 0:01:04.7]}
29. Nd4 {[%clk 0:01:07.5]} 29... Qd5 {[%clk 0:00:58.6]} 30. Qxf6 {[%clk
0:01:04.4]} 30... Qxd4 {[%clk 0:00:57.6]} 31. Qxf7+ {[%clk 0:01:04.2]} 31... Kh8
{[%clk 0:00:58]} 32. Qh7# {[%clk 0:01:04.2]} 1-0

[Event "Late-Titled-Tuesday-Blitz-January-23-2024"]
[Site "Chess.com"]
[Date "2024.01.23"]
[Round "5"]
[White "sergiochess83"]
[Black "thesupera12"]
[Result "1-0"]
[WhiteElo "2880"]
[BlackElo "2526"]
[TimeControl "180+1"]
[EndTime "14:52:48 PST"]
[Termination "sergiochess83 won by resignation"]

1. d4 {[%clk 0:03:00.9]} 1... Nf6 {[%clk 0:02:55]} 2. c4 {[%clk 0:03:00.5]} 2...
g6 {[%clk 0:02:55.3]} 3. f3 {[%clk 0:03:00.3]} 3... d5 {[%clk 0:02:54.8]} 4.
cxd5 {[%clk 0:02:59.8]} 4... Nxd5 {[%clk 0:02:55.7]} 5. e4 {[%clk 0:03:00.2]}
5... Nb6 {[%clk 0:02:56.3]} 6. Nc3 {[%clk 0:03:00.7]} 6... Bg7 {[%clk 0:02:57]}
7. Be3 {[%clk 0:03:01.4]} 7... O-O {[%clk 0:02:57.6]} 8. Qd2 {[%clk 0:03:01.7]}
8... e5 {[%clk 0:02:54.5]} 9. O-O-O {[%clk 0:02:53.2]} 9... Nc6 {[%clk
0:02:24.5]} 10. d5 {[%clk 0:02:48.9]} 10... Nd4 {[%clk 0:02:20.6]} 11. Nb5
{[%clk 0:02:34.7]} 11... c5 {[%clk 0:01:56.6]} 12. dxc6 {[%clk 0:02:31.6]} 12...
Nxc6 {[%clk 0:01:53.1]} 13. Qxd8 {[%clk 0:02:24.7]} 13... Rxd8 {[%clk 0:01:54]}
14. Rxd8+ {[%clk 0:02:23.9]} 14... Nxd8 {[%clk 0:01:54.9]} 15. Nxa7 {[%clk
0:02:23.4]} 15... Nd7 {[%clk 0:01:15.5]} 16. Bb5 {[%clk 0:02:06.5]} 16... Nc6
{[%clk 0:01:08.3]} 17. Bxc6 {[%clk 0:02:03.4]} 17... bxc6 {[%clk 0:01:08.3]} 18.
Nxc8 {[%clk 0:02:03.6]} 18... Rxc8 {[%clk 0:01:07.2]} 19. Ne2 {[%clk 0:02:04.2]}
19... c5 {[%clk 0:01:04.7]} 20. Rd1 {[%clk 0:01:59.7]} 20... Nb6 {[%clk
0:01:00.1]} 21. Kc2 {[%clk 0:01:54.1]} 21... Nc4 {[%clk 0:00:59]} 22. Bc1 {[%clk
0:01:52.9]} 22... Ra8 {[%clk 0:00:58.5]} 23. Nc3 {[%clk 0:01:52.9]} 23... Bf8
{[%clk 0:00:53]} 24. Rd5 {[%clk 0:01:28.7]} 24... f6 {[%clk 0:00:51.1]} 25. Rd7
{[%clk 0:01:27.8]} 25... Nb6 {[%clk 0:00:45.6]} 26. Rb7 {[%clk 0:01:27.4]} 26...
Na4 {[%clk 0:00:43.8]} 27. Nd5 {[%clk 0:01:26.6]} 27... Bg7 {[%clk 0:00:40.8]}
28. b3 {[%clk 0:01:26.1]} 28... c4 {[%clk 0:00:36.5]} 29. bxa4 {[%clk
0:01:23.7]} 29... Rxa4 {[%clk 0:00:37.4]} 30. a3 {[%clk 0:01:22.3]} 30... c3
{[%clk 0:00:36.4]} 31. Nxc3 {[%clk 0:01:21.9]} 31... Rc4 {[%clk 0:00:36.6]} 32.
a4 {[%clk 0:01:20.4]} 1-0

[Event "Late-Titled-Tuesday-Blitz-January-23-2024"]
[Site "Chess.com"]
[Date "2024.01.23"]
[Round "5"]
[White "only_strong_moves"]
[Black "GMJustin"]
[Result "1-0"]
[WhiteElo "2529"]
[BlackElo "2336"]
[TimeControl "180+1"]
[EndTime "14:52:52 PST"]
[Termination "only_strong_moves won on time"]

1. d4 {[%clk 0:03:00.9]} 1... Nf6 {[%clk 0:02:25.3]} 2. Nc3 {[%clk 0:02:57.2]}
2... d5 {[%clk 0:02:23]} 3. Bf4 {[%clk 0:02:56.5]} 3... a6 {[%clk 0:02:22.6]} 4.
e3 {[%clk 0:02:55.6]} 4... b5 {[%clk 0:02:22.6]} 5. Nf3 {[%clk 0:02:41.2]} 5...
Bb7 {[%clk 0:02:21]} 6. Ne5 {[%clk 0:02:39.2]} 6... Nbd7 {[%clk 0:02:17.8]} 7.
g4 {[%clk 0:02:34.9]} 7... Nxe5 {[%clk 0:02:13.3]} 8. Bxe5 {[%clk 0:02:35.8]}
8... e6 {[%clk 0:02:06.1]} 9. Bg2 {[%clk 0:02:32.5]} 9... Bd6 {[%clk 0:01:53.7]}
10. Bg3 {[%clk 0:02:30.1]} 10... h5 {[%clk 0:01:31.9]} 11. g5 {[%clk 0:02:24.1]}
11... Ne4 {[%clk 0:01:31.5]} 12. Nxe4 {[%clk 0:02:22]} 12... dxe4 {[%clk
0:01:31.5]} 13. Bxd6 {[%clk 0:02:16.7]} 13... cxd6 {[%clk 0:01:26.8]} 14. h4
{[%clk 0:02:15.6]} 14... f5 {[%clk 0:01:13.1]} 15. c3 {[%clk 0:02:11.2]} 15...
g6 {[%clk 0:01:06.1]} 16. a4 {[%clk 0:02:10.8]} 16... Qb6 {[%clk 0:00:58.4]} 17.
Bf1 {[%clk 0:02:07.5]} 17... Bd5 {[%clk 0:00:51.2]} 18. axb5 {[%clk 0:02:05.6]}
18... axb5 {[%clk 0:00:51]} 19. Rxa8+ {[%clk 0:02:06.5]} 19... Bxa8 {[%clk
0:00:49.7]} 20. Qb3 {[%clk 0:02:06.2]} 20... Ke7 {[%clk 0:00:39.4]} 21. Qxb5
{[%clk 0:02:04.3]} 21... Qxb5 {[%clk 0:00:35.2]} 22. Bxb5 {[%clk 0:02:05.2]}
22... Rb8 {[%clk 0:00:34.6]} 23. c4 {[%clk 0:02:05.7]} 23... e5 {[%clk
0:00:19.9]} 24. dxe5 {[%clk 0:02:01.7]} 24... dxe5 {[%clk 0:00:18.8]} 25. Kd2
{[%clk 0:02:02.2]} 25... f4 {[%clk 0:00:14]} 26. Ra1 {[%clk 0:02:00]} 26... Ke6
{[%clk 0:00:11.2]} 27. Ra6+ {[%clk 0:01:58.2]} 27... Kf7 {[%clk 0:00:07.3]} 28.
Rf6+ {[%clk 0:01:58.4]} 28... Kg7 {[%clk 0:00:06.6]} 29. exf4 {[%clk 0:01:58.6]}
29... exf4 {[%clk 0:00:05.4]} 30. Rxf4 {[%clk 0:01:59.5]} 30... Rd8+ {[%clk
0:00:04.5]} 31. Kc3 {[%clk 0:01:59.9]} 31... Rd3+ {[%clk 0:00:03.9]} 32. Kb4
{[%clk 0:02:00.4]} 1-0

[Event "Late-Titled-Tuesday-Blitz-January-23-2024"]
[Site "Chess.com"]
[Date "2024.01.23"]
[Round "5"]
[White "Vladimir_Zakhartsov"]
[Black "CaspiIsrael"]
[Result "0-1"]
[WhiteElo "2843"]
[BlackElo "2684"]
[TimeControl "180+1"]
[EndTime "14:53:00 PST"]
[Termination "CaspiIsrael won by resignation"]

1. e4 {[%clk 0:02:55.6]} 1... e5 {[%clk 0:02:59.3]} 2. Nf3 {[%clk 0:02:55.2]}
2... Nc6 {[%clk 0:02:59.9]} 3. Nc3 {[%clk 0:02:55.3]} 3... Nf6 {[%clk 0:03:00]}
4. a3 {[%clk 0:02:55.9]} 4... d5 {[%clk 0:02:59.4]} 5. Bb5 {[%clk 0:02:55.2]}
5... Nxe4 {[%clk 0:02:54.3]} 6. Qe2 {[%clk 0:02:55.4]} 6... Qd6 {[%clk
0:02:53.7]} 7. Nxe4 {[%clk 0:02:55.3]} 7... dxe4 {[%clk 0:02:54]} 8. Qxe4 {[%clk
0:02:55.9]} 8... Bd7 {[%clk 0:02:54.4]} 9. d4 {[%clk 0:02:55.6]} 9... O-O-O
{[%clk 0:02:53.5]} 10. dxe5 {[%clk 0:02:55.4]} 10... Nxe5 {[%clk 0:02:50.4]} 11.
Bxd7+ {[%clk 0:02:55.5]} 11... Rxd7 {[%clk 0:02:45.7]} 12. O-O {[%clk
0:02:55.6]} 12... Nxf3+ {[%clk 0:02:45.2]} 13. Qxf3 {[%clk 0:02:56.5]} 13... Qg6
{[%clk 0:02:38.8]} 14. Be3 {[%clk 0:02:54.8]} 14... Kb8 {[%clk 0:02:32.7]} 15.
c4 {[%clk 0:02:52.7]} 15... Be7 {[%clk 0:02:30.7]} 16. b4 {[%clk 0:02:52.4]}
16... Rhd8 {[%clk 0:02:29.4]} 17. c5 {[%clk 0:02:52.8]} 17... Rd3 {[%clk
0:02:28]} 18. h3 {[%clk 0:02:49.4]} 18... Bg5 {[%clk 0:02:23.9]} 19. Rfe1 {[%clk
0:02:49.8]} 19... f5 {[%clk 0:02:02.9]} 20. Bxg5 {[%clk 0:02:17.9]} 20... Rxf3
{[%clk 0:01:55.2]} 21. Bxd8 {[%clk 0:02:17.9]} 21... Rd3 {[%clk 0:01:48.5]} 22.
Be7 {[%clk 0:02:01.7]} 22... f4 {[%clk 0:01:45.2]} 23. b5 {[%clk 0:01:55.1]}
23... a6 {[%clk 0:01:36.9]} 24. a4 {[%clk 0:01:51.8]} 24... Rxh3 {[%clk
0:01:35.7]} 25. b6 {[%clk 0:01:40.4]} 25... f3 {[%clk 0:01:29.2]} 26. Bg5 {[%clk
0:01:28.1]} 26... fxg2 {[%clk 0:01:09.8]} 27. bxc7+ {[%clk 0:01:00]} 27... Kc8
{[%clk 0:00:53.9]} 0-1

[Event "Late-Titled-Tuesday-Blitz-January-23-2024"]
[Site "Chess.com"]
[Date "2024.01.23"]
[Round "5"]
[White "vyprd"]
[Black "StankovicIvan"]
[Result "0-1"]
[WhiteElo "2342"]
[BlackElo "2548"]
[TimeControl "180+1"]
[EndTime "14:53:03 PST"]
[Termination "StankovicIvan won by resignation"]

1. e4 {[%clk 0:02:55.9]} 1... c5 {[%clk 0:02:59.4]} 2. Nf3 {[%clk 0:02:55.3]}
2... Nc6 {[%clk 0:02:59.1]} 3. d4 {[%clk 0:02:55.8]} 3... cxd4 {[%clk 0:03:00]}
4. Nxd4 {[%clk 0:02:56.3]} 4... g6 {[%clk 0:03:00.3]} 5. c4 {[%clk 0:02:55.1]}
5... Bg7 {[%clk 0:02:59.6]} 6. Be3 {[%clk 0:02:55.3]} 6... Qb6 {[%clk
0:02:59.8]} 7. Nb5 {[%clk 0:02:53.8]} 7... Qa5+ {[%clk 0:02:57.4]} 8. N5c3
{[%clk 0:02:50.7]} 8... Nf6 {[%clk 0:02:56.2]} 9. f3 {[%clk 0:02:45.6]} 9... O-O
{[%clk 0:02:51.9]} 10. Be2 {[%clk 0:02:45]} 10... d6 {[%clk 0:02:51.9]} 11. O-O
{[%clk 0:02:44.6]} 11... a6 {[%clk 0:02:39.4]} 12. Na3 {[%clk 0:02:42.1]} 12...
Be6 {[%clk 0:02:32]} 13. Qd2 {[%clk 0:02:33.8]} 13... Rfc8 {[%clk 0:02:30.2]}
14. Rfd1 {[%clk 0:02:32.6]} 14... Rab8 {[%clk 0:02:24.6]} 15. Kh1 {[%clk
0:02:31.1]} 15... Ne5 {[%clk 0:02:16.9]} 16. Nd5 {[%clk 0:02:18.9]} 16... Qxd2
{[%clk 0:02:14.4]} 17. Rxd2 {[%clk 0:02:17.8]} 17... Bxd5 {[%clk 0:01:52]} 18.
cxd5 {[%clk 0:02:18.7]} 18... b5 {[%clk 0:01:49.4]} 19. Rad1 {[%clk 0:02:15.7]}
19... Nfd7 {[%clk 0:01:43.8]} 20. Rc2 {[%clk 0:02:09.6]} 20... Rxc2 {[%clk
0:01:32.8]} 21. Nxc2 {[%clk 0:02:08.6]} 21... Nc4 {[%clk 0:01:31.9]} 22. Bxc4
{[%clk 0:02:02.7]} 22... bxc4 {[%clk 0:01:31.6]} 23. Nd4 {[%clk 0:01:56.6]}
23... Rxb2 {[%clk 0:01:28.7]} 24. Nc6 {[%clk 0:01:52.1]} 24... Bf6 {[%clk
0:01:22.9]} 25. a4 {[%clk 0:01:51.1]} 25... Kg7 {[%clk 0:01:21.9]} 26. a5 {[%clk
0:01:50]} 26... c3 {[%clk 0:01:15.8]} 27. Rc1 {[%clk 0:01:47.7]} 27... c2 {[%clk
0:01:14.3]} 28. Nd4 {[%clk 0:01:46.7]} 28... Nc5 {[%clk 0:01:00]} 29. Kg1 {[%clk
0:01:41.8]} 29... Nd3 {[%clk 0:00:48.8]} 30. Rf1 {[%clk 0:01:30.2]} 30... c1=Q
{[%clk 0:00:37]} 31. Bxc1 {[%clk 0:01:14]} 31... Bxd4+ {[%clk 0:00:35.2]} 32.
Kh1 {[%clk 0:01:13.8]} 32... Nxc1 {[%clk 0:00:33.3]} 33. Rxc1 {[%clk 0:01:12.2]}
33... Ra2 {[%clk 0:00:33.8]} 0-1

[Event "Late-Titled-Tuesday-Blitz-January-23-2024"]
[Site "Chess.com"]
[Date "2024.01.23"]
[Round "5"]
[White "maurovargas01"]
[Black "Walter_White_Poland"]
[Result "0-1"]
[WhiteElo "1837"]
[BlackElo "2342"]
[TimeControl "180+1"]
[EndTime "14:53:10 PST"]
[Termination "Walter_White_Poland won by checkmate"]

1. e4 {[%clk 0:03:00.8]} 1... e6 {[%clk 0:02:59.9]} 2. f4 {[%clk 0:02:59.2]}
2... d5 {[%clk 0:02:59.7]} 3. e5 {[%clk 0:03:00.1]} 3... c5 {[%clk 0:02:55.8]}
4. Nf3 {[%clk 0:03:01]} 4... Nc6 {[%clk 0:02:55.1]} 5. Bb5 {[%clk 0:03:01.1]}
5... Bd7 {[%clk 0:02:52.9]} 6. Bxc6 {[%clk 0:03:01.2]} 6... Bxc6 {[%clk
0:02:53.1]} 7. O-O {[%clk 0:03:02.1]} 7... Nh6 {[%clk 0:02:43.7]} 8. h3 {[%clk
0:03:01]} 8... Nf5 {[%clk 0:02:42.1]} 9. g4 {[%clk 0:02:58.9]} 9... Nh4 {[%clk
0:02:41.4]} 10. Nxh4 {[%clk 0:02:54.4]} 10... Qxh4 {[%clk 0:02:40.8]} 11. Kh2
{[%clk 0:02:54.4]} 11... f6 {[%clk 0:02:01.7]} 12. Qe1 {[%clk 0:02:48.6]} 12...
Qxe1 {[%clk 0:01:57.9]} 13. Rxe1 {[%clk 0:02:48.1]} 13... Kf7 {[%clk 0:01:56.9]}
14. exf6 {[%clk 0:02:44.8]} 14... gxf6 {[%clk 0:01:56.4]} 15. d3 {[%clk
0:02:44.8]} 15... Bd6 {[%clk 0:01:56]} 16. Nc3 {[%clk 0:02:43]} 16... b5 {[%clk
0:01:51.5]} 17. Bd2 {[%clk 0:02:35.5]} 17... b4 {[%clk 0:01:51]} 18. Ne2 {[%clk
0:02:33.2]} 18... h5 {[%clk 0:01:43.1]} 19. g5 {[%clk 0:02:30.7]} 19... fxg5
{[%clk 0:01:42.8]} 20. Kg1 {[%clk 0:02:24.7]} 20... g4 {[%clk 0:01:36.9]} 21.
Ng3 {[%clk 0:02:04.4]} 21... h4 {[%clk 0:01:27.2]} 22. Ne2 {[%clk 0:01:58.1]}
22... Rag8 {[%clk 0:01:21.9]} 23. Kh2 {[%clk 0:01:55.1]} 23... d4 {[%clk
0:01:00.1]} 24. Rg1 {[%clk 0:01:48.7]} 24... g3+ {[%clk 0:00:58]} 25. Nxg3
{[%clk 0:01:37.8]} 25... hxg3+ {[%clk 0:00:57.9]} 26. Rxg3 {[%clk 0:01:34.5]}
26... Rxg3 {[%clk 0:00:57.9]} 27. Kxg3 {[%clk 0:01:34.3]} 27... Rg8+ {[%clk
0:00:58.2]} 28. Kh4 {[%clk 0:01:31.1]} 28... Bf3 {[%clk 0:00:51.8]} 29. f5
{[%clk 0:01:26.7]} 29... Be7+ {[%clk 0:00:51.2]} 30. Bg5 {[%clk 0:01:22.7]}
30... Rxg5 {[%clk 0:00:42.7]} 31. fxe6+ {[%clk 0:01:22.7]} 31... Kg6 {[%clk
0:00:30.2]} 32. Rf1 {[%clk 0:01:11.4]} 32... Rg1# {[%clk 0:00:27.6]} 0-1

[Event "Late-Titled-Tuesday-Blitz-January-23-2024"]
[Site "Chess.com"]
[Date "2024.01.23"]
[Round "5"]
[White "PNEPaul"]
[Black "SocoLoco"]
[Result "1-0"]
[WhiteElo "1911"]
[BlackElo "2191"]
[TimeControl "180+1"]
[EndTime "14:53:13 PST"]
[Termination "PNEPaul won by checkmate"]

1. e4 {[%clk 0:02:42.1]} 1... c5 {[%clk 0:02:58.4]} 2. Nf3 {[%clk 0:02:42]} 2...
e6 {[%clk 0:02:58.4]} 3. d4 {[%clk 0:02:42.3]} 3... cxd4 {[%clk 0:02:58.4]} 4.
c3 {[%clk 0:02:42.7]} 4... d5 {[%clk 0:02:43.9]} 5. exd5 {[%clk 0:02:41.9]} 5...
Qxd5 {[%clk 0:02:43.4]} 6. cxd4 {[%clk 0:02:41.6]} 6... Nf6 {[%clk 0:02:42.7]}
7. Be2 {[%clk 0:02:41.8]} 7... Be7 {[%clk 0:02:42]} 8. Nc3 {[%clk 0:02:41.9]}
8... Qd6 {[%clk 0:02:39.2]} 9. O-O {[%clk 0:02:41.1]} 9... O-O {[%clk
0:02:38.8]} 10. h3 {[%clk 0:02:41]} 10... Rd8 {[%clk 0:02:35.8]} 11. Be3 {[%clk
0:02:37]} 11... Nc6 {[%clk 0:02:35.6]} 12. Qd2 {[%clk 0:02:27.8]} 12... a6
{[%clk 0:02:28.4]} 13. Rad1 {[%clk 0:02:26.2]} 13... Nb4 {[%clk 0:02:27.9]} 14.
Bf4 {[%clk 0:02:09.8]} 14... Qb6 {[%clk 0:02:10.1]} 15. Bg5 {[%clk 0:01:57.1]}
15... Nbd5 {[%clk 0:01:59.5]} 16. Nxd5 {[%clk 0:01:52.5]} 16... Rxd5 {[%clk
0:01:59.4]} 17. Bc4 {[%clk 0:01:45]} 17... Rd8 {[%clk 0:01:48.4]} 18. Bd3 {[%clk
0:01:25]} 18... h6 {[%clk 0:01:32.9]} 19. Bxh6 {[%clk 0:01:22.9]} 19... gxh6
{[%clk 0:01:00.1]} 20. Qxh6 {[%clk 0:01:19.7]} 20... Rd5 {[%clk 0:00:33.8]} 21.
Ng5 {[%clk 0:01:02.7]} 21... Qd8 {[%clk 0:00:30.1]} 22. Bh7+ {[%clk 0:00:55.2]}
22... Kh8 {[%clk 0:00:17.6]} 23. Bg6+ {[%clk 0:00:53]} 23... Kg8 {[%clk
0:00:17.5]} 24. Bxf7# {[%clk 0:00:51.3]} 1-0

[Event "Late-Titled-Tuesday-Blitz-January-23-2024"]
[Site "Chess.com"]
[Date "2024.01.23"]
[Round "5"]
[White "OPQRC"]
[Black "LUISMIGUELOV"]
[Result "1-0"]
[WhiteElo "2528"]
[BlackElo "2173"]
[TimeControl "180+1"]
[EndTime "14:53:14 PST"]
[Termination "OPQRC won on time"]

1. e4 {[%clk 0:02:55.5]} 1... c6 {[%clk 0:02:58.6]} 2. d4 {[%clk 0:02:51.6]}
2... d5 {[%clk 0:02:59]} 3. e5 {[%clk 0:02:52.3]} 3... c5 {[%clk 0:02:58.6]} 4.
c3 {[%clk 0:02:49.7]} 4... Nc6 {[%clk 0:02:57]} 5. Nf3 {[%clk 0:02:41.5]} 5...
Bg4 {[%clk 0:02:55.5]} 6. Bd3 {[%clk 0:02:34.7]} 6... cxd4 {[%clk 0:02:53]} 7.
cxd4 {[%clk 0:02:34.9]} 7... Qb6 {[%clk 0:02:46.7]} 8. O-O {[%clk 0:02:28.4]}
8... e6 {[%clk 0:02:39.9]} 9. Be3 {[%clk 0:02:23.6]} 9... Nge7 {[%clk
0:02:36.4]} 10. Nbd2 {[%clk 0:02:22.1]} 10... Nf5 {[%clk 0:02:35.3]} 11. h3
{[%clk 0:02:17.1]} 11... Bxf3 {[%clk 0:02:30.2]} 12. Nxf3 {[%clk 0:02:15.6]}
12... Be7 {[%clk 0:02:24.2]} 13. Bxf5 {[%clk 0:02:02.5]} 13... exf5 {[%clk
0:02:23.5]} 14. Qd3 {[%clk 0:02:02.7]} 14... g6 {[%clk 0:02:21.9]} 15. b3 {[%clk
0:01:45.5]} 15... a6 {[%clk 0:02:17.9]} 16. Rac1 {[%clk 0:01:42.8]} 16... Qb5
{[%clk 0:02:17.5]} 17. Qd2 {[%clk 0:01:42]} 17... O-O {[%clk 0:02:05.7]} 18. Bg5
{[%clk 0:01:39.9]} 18... Bxg5 {[%clk 0:02:03.1]} 19. Qxg5 {[%clk 0:01:36.9]}
19... Rfe8 {[%clk 0:01:55.3]} 20. Qh6 {[%clk 0:01:26.3]} 20... Qe2 {[%clk
0:00:45.8]} 21. Rfe1 {[%clk 0:01:15.6]} 21... Qd3 {[%clk 0:00:17.3]} 22. Ng5
{[%clk 0:01:15]} 22... Nd8 {[%clk 0:00:15.4]} 23. Qxh7+ {[%clk 0:01:10]} 23...
Kf8 {[%clk 0:00:14.6]} 24. Rc7 {[%clk 0:01:10.6]} 1-0

[Event "Late-Titled-Tuesday-Blitz-January-23-2024"]
[Site "Chess.com"]
[Date "2024.01.23"]
[Round "5"]
[White "ccccvhhhj"]
[Black "Maect19"]
[Result "0-1"]
[WhiteElo "2484"]
[BlackElo "2327"]
[TimeControl "180+1"]
[EndTime "14:53:15 PST"]
[Termination "Maect19 won by checkmate"]

1. e4 {[%clk 0:03:00.9]} 1... e6 {[%clk 0:02:59.3]} 2. Nf3 {[%clk 0:03:01.2]}
2... d5 {[%clk 0:02:59.3]} 3. e5 {[%clk 0:03:02]} 3... c5 {[%clk 0:02:58.3]} 4.
b4 {[%clk 0:03:02.6]} 4... Nc6 {[%clk 0:02:56.1]} 5. bxc5 {[%clk 0:01:48.8]}
5... Bxc5 {[%clk 0:02:54.3]} 6. d4 {[%clk 0:01:49.4]} 6... Be7 {[%clk
0:02:51.3]} 7. c3 {[%clk 0:01:19]} 7... h5 {[%clk 0:02:50.6]} 8. Bd3 {[%clk
0:01:19]} 8... Nh6 {[%clk 0:02:49.6]} 9. O-O {[%clk 0:01:19.3]} 9... Bd7 {[%clk
0:02:46.6]} 10. Na3 {[%clk 0:01:19.1]} 10... a6 {[%clk 0:02:45.8]} 11. Nc2
{[%clk 0:01:19.8]} 11... g6 {[%clk 0:02:44]} 12. Ne3 {[%clk 0:01:16.8]} 12...
Nf5 {[%clk 0:02:42.8]} 13. Nxf5 {[%clk 0:01:13.5]} 13... gxf5 {[%clk 0:02:39.3]}
14. c4 {[%clk 0:01:12.7]} 14... dxc4 {[%clk 0:02:37.5]} 15. Bxc4 {[%clk
0:01:12.9]} 15... Na5 {[%clk 0:02:09.6]} 16. Bd3 {[%clk 0:01:13.2]} 16... Bc6
{[%clk 0:02:09.4]} 17. Be3 {[%clk 0:01:11.7]} 17... Bd5 {[%clk 0:02:00.2]} 18.
Nd2 {[%clk 0:01:05]} 18... Nc6 {[%clk 0:01:58.8]} 19. Nb3 {[%clk 0:01:03.2]}
19... Rg8 {[%clk 0:01:56]} 20. f3 {[%clk 0:01:03.5]} 20... Bg5 {[%clk
0:01:53.4]} 21. Qe2 {[%clk 0:01:00.5]} 21... Bxe3+ {[%clk 0:01:47]} 22. Qxe3
{[%clk 0:01:01.4]} 22... Qh4 {[%clk 0:01:45.5]} 23. g3 {[%clk 0:00:50.7]} 23...
f4 {[%clk 0:01:27.4]} 24. Kh1 {[%clk 0:00:31.5]} 24... fxg3 {[%clk 0:01:18.9]}
25. Qd2 {[%clk 0:00:15.3]} 25... g2+ {[%clk 0:01:14.4]} 26. Kg1 {[%clk
0:00:15.8]} 26... gxf1=Q+ {[%clk 0:01:12.5]} 27. Kxf1 {[%clk 0:00:16.7]} 27...
Qh3+ {[%clk 0:01:10.5]} 28. Ke1 {[%clk 0:00:16.3]} 28... Rg1+ {[%clk 0:01:04.9]}
29. Ke2 {[%clk 0:00:16.3]} 29... Qxf3# {[%clk 0:01:04.9]} 0-1